bitfinex/quotes_SOLUSD_20240918
["timestamp","ask_amount","ask_price","bid_price","bid_amount"]
[1726677755451,0.2431738,128.98,128.97,7.7537]
[1726677757955,0.2431738,128.98,128.96,27.1394]
[1726677765754,7.9964738,128.98,128.94,14.1721]
[1726677765965,7.9964738,128.98,128.95,7.7549]
[1726677766262,0.2431738,128.98,128.96,7.7541]
[1726677767059,0.2431738,128.98,128.95,27.1405]
[1726677767447,7.9963738,128.98,128.95,19.3858]
[1726677769160,0.2431738,128.98,128.95,27.1406]
[1726677769836,7.9962738,128.98,128.95,27.1406]
[1726677771562,0.2431738,128.98,128.95,27.1406]
[1726677773166,7.9963738,128.98,128.95,27.1406]
[1726677773745,9.31346458,128.97,128.94,7.7553]
[1726677774047,7.7546,128.96,128.92,35.7687]
[1726677774362,7.7546,128.96,128.92,27.147]
[1726677774939,7.7551,128.95,128.91,7.7571]
[1726677775447,7.7544,128.96,128.92,7.7565]
[1726677775850,7.7549,128.95,128.92,7.7565]
[1726677776848,7.7549,128.95,128.91,27.1498]
[1726677778057,7.7556,128.94,128.91,19.3927]
[1726677778258,7.7551,128.95,128.91,27.1499]
[1726677779862,20.2431738,128.98,128.91,30.49640271]
[1726677780063,31.530984,128.97,128.93,7.756]
[1726677780352,7.7538,128.97,128.93,27.1462]
[1726677780752,7.9964738,128.98,128.94,7.7554]
[1726677780952,0.2431738,128.98,128.95,7.7547]
[1726677781250,0.2431738,128.98,128.95,19.3872]
[1726677781455,7.9963738,128.98,128.95,19.3872]
[1726677782576,23.776884,128.97,128.95,19.3872]
[1726677782885,23.776884,128.97,128.94,7.7553]
[1726677783069,31.530684,128.97,128.93,7.7559]
[1726677783877,7.7544,128.96,128.92,27.1466]
[1726677785151,31.531884,128.95,128.92,19.3903]
[1726677785652,7.755,128.95,128.91,7.7571]
[1726677786155,23.776884,128.94,128.91,7.7571]
[1726677787162,19.6261738,128.98,128.91,7.7571]
[1726677787163,7.7543,128.96,128.92,7.7563]
[1726677787362,23.776884,128.95,128.92,7.7563]
[1726677789286,31.531984,128.95,128.91,27.15]
[1726677791359,23.776884,128.95,128.91,19.3929]
[1726677791559,23.776884,128.96,128.93,7.7558]
[1726677791770,7.7538,128.97,128.94,7.7554]
[1726677791975,7.9964738,128.98,128.94,7.7554]
[1726677792578,0.2431738,128.98,128.95,7.7545]
[1726677794195,24.0200578,128.98,128.95,7.7545]
[1726677794973,0.2431738,128.98,128.96,7.7542]
[1726677795477,0.2431738,128.98,128.97,7.7537]
[1726677802399,0.2431738,128.98,128.97,27.7537]
[1726677802702,0.2431738,128.98,128.97,7.7537]
[1726677808205,0.2431738,128.98,128.97,40.53354181]
[1726677808504,0.2431738,128.98,128.97,38.98289271]
[1726677808681,0.2431738,128.98,128.97,38.85740271]
[1726677808879,0.2431738,128.98,128.97,7.7537]
[1726677809084,0.2431738,128.98,128.96,27.1395]
[1726677810194,0.2431738,128.98,128.96,19.3854]
[1726677811911,0.2431738,128.98,128.95,7.7548]
[1726677812213,23.776884,128.97,128.94,7.7554]
[1726677816196,23.776884,128.97,128.93,27.1451]
[1726677816197,31.530584,128.97,128.93,27.1451]
[1726677816801,23.776884,128.97,128.93,19.3892]
[1726677817502,23.776884,128.95,128.9,19.3943]
[1726677817718,0.37647,128.96,128.9,19.3943]
[1726677818017,7.7567,128.92,128.88,7.7589]
[1726677818191,23.776884,128.91,128.88,7.7589]
[1726677819198,23.776884,128.91,128.89,7.7585]
[1726677819699,23.776884,128.92,128.89,7.7585]
[1726677819900,23.776884,128.92,128.9,7.7575]
[1726677820297,23.776884,128.92,128.89,30.49900271]
[1726677820298,23.776884,128.93,128.89,30.49900271]
[1726677820489,0.2431738,128.98,128.87,1.55173079]
[1726677820490,7.7537,128.97,128.93,7.7559]
[1726677822319,31.531884,128.95,128.91,27.149]
[1726677822526,31.531884,128.95,128.91,19.3919]
[1726677822527,23.776884,128.95,128.91,19.3919]
[1726677823025,7.7559,128.94,128.9,7.7579]
[1726677823215,23.776884,128.93,128.9,7.7579]
[1726677824520,7.755,128.95,128.91,7.7571]
[1726677824733,23.776884,128.94,128.91,7.7571]
[1726677824906,23.776884,128.94,128.9,27.1519]
[1726677824907,31.532484,128.94,128.9,27.1519]
[1726677826609,23.776884,128.94,128.91,7.7572]
[1726677827814,23.776884,128.94,128.9,27.1517]
[1726677828016,7.7561,128.93,128.9,19.3942]
[1726677828332,23.776884,128.92,128.9,19.3942]
[1726677829534,23.776884,128.92,128.9,27.152]
[1726677829717,23.776884,128.93,128.9,27.152]
[1726677832235,23.776884,128.93,128.9,19.3942]
[1726677832407,7.7547,128.96,128.92,7.7566]
[1726677833328,7.7547,128.96,128.92,27.1483]
[1726677833720,23.776884,128.95,128.92,27.1483]
[1726677837734,23.776884,128.96,128.93,7.7558]
[1726677837904,23.776884,128.96,128.92,19.3917]
[1726677838105,7.755,128.95,128.92,19.3917]
[1726677838309,7.7547,128.96,128.92,27.1482]
[1726677838535,23.776884,128.95,128.92,27.1482]
[1726677838744,0.2431738,128.98,128.92,19.3917]
[1726677838910,0.2431738,128.98,128.94,19.3881]
[1726677839113,24.0200578,128.98,128.94,19.3881]
[1726677839429,7.9967738,128.98,128.94,27.1435]
[1726677840330,7.9967738,128.98,128.94,19.3881]
[1726677840645,23.776884,128.96,128.93,7.7559]
[1726677841010,31.531284,128.96,128.92,7.7565]
[1726677841331,1.55966458,128.95,128.92,7.7565]
[1726677842206,31.531284,128.96,128.92,7.7565]
[1726677846635,23.776884,128.96,128.93,7.756]
[1726677846845,23.776884,128.96,128.91,41.7868]
[1726677847040,23.776884,128.96,128.93,7.7559]
[1726677847814,0.2431738,128.98,128.93,11.10782631]
[1726677848011,7.9967738,128.98,128.94,7.7553]
[1726677848330,7.7541,128.97,128.93,7.7559]
[1726677849026,0.2431738,128.98,128.92,19.3907]
[1726677849231,7.7541,128.97,128.93,7.7559]
[1726677849629,23.776884,128.96,128.93,7.7559]
[1726677850527,25.33654858,128.97,128.92,19.3907]
[1726677850727,7.755,128.95,128.92,19.3907]
[1726677851032,7.7561,128.93,128.89,27.1534]
[1726677851346,1.55966458,128.92,128.89,27.1534]
[1726677851724,25.33654858,128.91,128.89,19.395]
[1726677851931,25.33654858,128.91,128.88,23.5642]
[1726677852348,23.776884,128.91,128.88,23.5642]
[1726677856147,31.534284,128.91,128.87,7.7595]
[1726677856441,23.776884,128.89,128.86,19.3994]
[1726677856747,1.55966458,128.88,128.86,19.3994]
[1726677858226,23.776884,128.88,128.86,19.3994]
[1726677867749,23.776884,128.88,128.85,8.0204272]
[1726677869269,31.535984,128.88,128.85,8.0204272]
[1726677870482,23.776884,128.88,128.85,8.0204272]
[1726677872356,23.776884,128.88,128.85,0.2600272]
[1726677872656,31.536284,128.88,128.85,0.2600272]
[1726677874869,23.776884,128.88,128.85,8.0209272]
[1726677876456,31.535984,128.88,128.85,0.2600272]
[1726677876756,23.776884,128.86,128.85,0.2600272]
[1726677877149,25.33654858,128.86,128.85,0.2600272]
[1726677878159,23.776884,128.86,128.85,0.2600272]
[1726677882966,31.537184,128.86,128.85,0.2600272]
[1726677884164,31.788164,128.86,128.85,0.2600272]
[1726677884756,31.913654,128.86,128.85,0.2600272]
[1726677896189,31.537184,128.86,128.85,0.2600272]
[1726677896557,31.788164,128.86,128.85,0.2600272]
[1726677896764,31.913654,128.86,128.85,0.2600272]
[1726677909213,31.913654,128.86,128.81,19.6585005]
[1726677909214,31.913654,128.86,128.81,0.2516005]
[1726677909215,51.916054,128.82,128.81,0.2516005]
[1726677910281,53.47571858,128.82,128.81,0.2516005]
[1726677910582,51.916054,128.82,128.81,0.2516005]
[1726677912297,53.47571858,128.82,128.81,0.2516005]
[1726677913079,51.916054,128.82,128.81,0.2516005]
[1726677928322,53.47571858,128.82,128.81,0.2516005]
[1726677928625,51.916054,128.82,128.81,0.2516005]
[1726677929495,51.916054,128.82,128.77,0.2516005]
[1726677929496,51.918454,128.78,128.77,0.2516005]
[1726677929689,53.47811858,128.78,128.77,0.2516005]
[1726677930414,31.920854,128.74,128.73,0.2516005]
[1726677931498,33.48051858,128.74,128.73,0.2516005]
[1726677931698,33.48051858,128.74,128.7,22.3052]
[1726677931699,7.7694,128.71,128.7,22.3052]
[1726677931943,7.7694,128.71,128.7,22.6213412]
[1726677931944,31.546284,128.71,128.7,22.6213412]
[1726677932297,23.776884,128.71,128.7,22.6213412]
[1726677933003,51.797264,128.71,128.7,0.3161412]
[1726677933311,23.776884,128.71,128.7,0.3161412]
[1726677934722,31.546284,128.71,128.7,0.3161412]
[1726677935707,23.776884,128.71,128.7,0.3161412]
[1726677936204,31.797264,128.71,128.7,0.3161412]
[1726677937225,51.922754,128.71,128.7,0.3161412]
[1726677938520,53.48241858,128.71,128.7,0.3161412]
[1726677938927,51.924554,128.68,128.67,0.3117024]
[1726677940342,51.924554,128.68,128.62,8.0863024]
[1726677940343,7.7737,128.64,128.62,0.3117024]
[1726677941112,23.776884,128.63,128.62,0.3117024]
[1726677942940,0.25098,128.67,128.62,0.3117024]
[1726677943168,20.0,128.67,128.62,11.41952871]
[1726677943825,20.0,128.68,128.62,0.3117024]
[1726677944029,20.0,128.68,128.62,11.41952871]
[1726677944226,0.12549,128.67,128.62,11.41952871]
[1726677944438,23.776884,128.66,128.63,7.7741]
[1726677945238,20.12549,128.7,128.64,18.88132631]
[1726677945411,7.7694,128.71,128.67,7.7717]
[1726677945616,12.27927441,128.73,128.68,34.27842631]
[1726677945840,112.9,128.74,128.68,34.27842631]
[1726677946015,7.7693,128.72,128.68,15.3995]
[1726677946817,0.12549,128.69,128.68,15.3995]
[1726677947012,7.7693,128.72,128.68,23.1707]
[1726677947616,23.776884,128.71,128.68,23.1707]
[1726677947839,23.776884,128.71,128.68,15.3995]
[1726677948013,31.546384,128.71,128.68,15.3995]
[1726677949741,23.776884,128.71,128.68,15.3995]
[1726677950045,31.546484,128.71,128.68,15.3995]
[1726677950350,31.546484,128.71,128.68,23.1705]
[1726677950351,23.776884,128.71,128.68,23.1705]
[1726677951148,23.776884,128.69,128.68,15.3995]
[1726677951643,31.547484,128.69,128.68,15.3995]
[1726677951847,7.7718,128.67,128.66,6.5768]
[1726677952145,31.548684,128.67,128.66,6.5768]
[1726677958660,19.4238,128.71,128.66,6.5768]
[1726677958832,168.2255,128.74,128.66,6.5768]
[1726677958833,20.0,128.73,128.66,6.5768]
[1726677959849,7.7709,128.69,128.66,6.5768]
[1726677960223,31.548184,128.68,128.66,6.5768]
[1726677960430,7.7718,128.67,128.66,6.5768]
[1726677960725,23.776884,128.67,128.66,6.5768]
[1726677962623,7.7714,128.68,128.66,6.5768]
[1726677962844,11.14079021,128.74,128.67,1.55438578]
[1726677963043,19.4186,128.75,128.67,7.7715]
[1726677963044,7.7698,128.71,128.67,7.7715]
[1726677963229,7.7707,128.69,128.66,6.5768]
[1726677963428,19.4207,128.73,128.66,14.3491]
[1726677964143,0.25098,128.71,128.66,14.3491]
[1726677964348,7.7706,128.69,128.66,6.5768]
[1726677964930,23.776884,128.68,128.66,6.5768]
[1726677965553,23.776884,128.68,128.66,14.3492]
[1726677965851,23.776884,128.69,128.66,14.3492]
[1726677968154,31.547584,128.69,128.66,14.3492]
[1726677969652,31.547584,128.69,128.66,6.5768]
[1726677970449,31.548684,128.67,128.66,6.5768]
[1726677970636,31.548684,128.67,128.65,15.905]
[1726677970637,31.549284,128.66,128.65,15.905]
[1726677971446,31.549984,128.65,128.63,6.2839]
[1726677974533,23.776884,128.65,128.63,6.2839]
[1726677974863,31.551084,128.63,128.62,0.3117024]
[1726677975754,23.776884,128.63,128.62,0.3117024]
[1726677976358,31.551084,128.63,128.62,0.3117024]
[1726677978571,23.776884,128.63,128.62,0.3117024]
[1726677981136,7.7732,128.65,128.62,0.3117024]
[1726677981773,23.776884,128.64,128.62,0.3117024]
[1726677982443,31.550584,128.64,128.62,0.3117024]
[1726677982767,31.551084,128.63,128.62,0.3117024]
[1726677985548,23.776884,128.63,128.62,0.3117024]
[1726677985748,7.7738,128.64,128.62,0.3117024]
[1726677988467,33.11074858,128.63,128.62,0.3117024]
[1726677988642,31.551084,128.63,128.62,0.3117024]
[1726677992273,31.551084,128.63,128.58,7.7771]
[1726677992274,7.775,128.62,128.58,7.7771]
[1726677992481,31.551884,128.62,128.61,0.4049794]
[1726677994587,51.802864,128.62,128.61,0.4049794]
[1726677995774,51.928354,128.62,128.61,0.4049794]
[1726677997053,53.48801858,128.62,128.61,0.4049794]
[1726678008092,72.92511858,128.62,128.61,0.4049794]
[1726678009588,80.9896398,128.62,128.61,0.4049794]
[1726678014071,79.42997522,128.62,128.61,0.4049794]
[1726678015002,27.775,128.62,128.61,0.4049794]
[1726678016195,51.928354,128.62,128.61,0.4049794]
[1726678020085,27.775,128.62,128.61,0.4049794]
[1726678021300,29.33466458,128.62,128.61,0.4049794]
[1726678021483,27.775,128.62,128.61,0.4049794]
[1726678021882,51.928354,128.62,128.61,0.4049794]
[1726678022720,53.48801858,128.62,128.61,0.4049794]
[1726678025613,51.928354,128.62,128.61,0.4049794]
[1726678025815,60.00491801,128.62,128.61,0.4049794]
[1726678027514,7.7772,128.58,128.57,0.2752505]
[1726678027702,31.805064,128.58,128.57,0.2752505]
[1726678032041,31.554084,128.58,128.57,0.2752505]
[1726678032184,7.7768,128.59,128.57,0.2752505]
[1726678032383,7.7763,128.6,128.57,1.83076602]
[1726678032603,27.7756,128.61,128.57,9.60836602]
[1726678032906,7.7743,128.63,128.59,7.776]
[1726678033113,112.9,128.65,128.6,9.33093341]
[1726678033329,112.9,128.65,128.6,1.55503341]
[1726678033485,112.9,128.65,128.59,9.33143308]
[1726678034197,112.9,128.65,128.61,7.7754]
[1726678034400,112.9,128.65,128.61,9.33024109]
[1726678035114,120.6736,128.65,128.6,33.5815]
[1726678035293,7.7742,128.63,128.6,25.8057]
[1726678035700,23.776884,128.62,128.6,25.8057]
[1726678036204,23.776884,128.63,128.6,25.8057]
[1726678036501,23.776884,128.63,128.6,33.5816]
[1726678036897,112.9,128.65,128.62,7.7748]
[1726678037597,120.673,128.65,128.61,7.7752]
[1726678038109,23.776884,128.64,128.61,7.7752]
[1726678038501,31.550484,128.64,128.6,33.5815]
[1726678041407,7.7742,128.63,128.6,6.3657]
[1726678041716,23.776884,128.64,128.6,6.3657]
[1726678042293,23.776884,128.61,128.6,6.3657]
[1726678042907,23.776884,128.61,128.6,14.1417]
[1726678043110,23.776884,128.63,128.6,14.1417]
[1726678043396,113.15098,128.65,128.61,28.76851538]
[1726678043397,7.7732,128.65,128.61,28.76851538]
[1726678043597,7.7725,128.66,128.62,7.7747]
[1726678044015,7.7725,128.66,128.63,15.9014]
[1726678045102,23.776884,128.65,128.63,15.9014]
[1726678045497,23.776884,128.65,128.63,23.6756]
[1726678045715,23.776884,128.66,128.63,23.6756]
[1726678046423,7.772,128.67,128.63,43.111]
[1726678046626,439.16586562,128.72,128.63,43.111]
[1726678046627,7.771,128.69,128.65,14.3639]
[1726678046928,7.7717,128.68,128.65,6.5909]
[1726678048113,7.7703,128.7,128.66,7.7723]
[1726678048300,7.7703,128.7,128.65,27.57743355]
[1726678048301,8.0445505,128.72,128.68,22.9259]
[1726678048629,0.2752505,128.72,128.7,6.2932]
[1726678048830,0.2752505,128.72,128.71,9.32314727]
[1726678048998,0.2752505,128.72,128.71,7.7694]
[1726678049424,0.2752505,128.72,128.71,9.32292967]
[1726678049924,0.2752505,128.72,128.71,25.01852967]
[1726678050105,0.2752505,128.76,128.74,7.7675]
[1726678050299,0.2752505,128.76,128.72,19.4213]
[1726678050918,0.2752505,128.76,128.73,1.5533212]
[1726678051129,0.2752505,128.76,128.74,1.55327105]
[1726678051704,0.2752505,128.76,128.75,1.55327335]
[1726678051905,0.2752505,128.76,128.73,7.768]
[1726678052417,0.2752505,128.76,128.72,19.4213]
[1726678052615,0.2752505,128.76,128.73,1.55331662]
[1726678052830,20.2752505,128.8,128.74,1.55322515]
[1726678052831,7.7652,128.78,128.74,1.55322515]
[1726678053132,7.7652,128.78,128.73,7.7681]
[1726678053133,0.2907695,128.76,128.73,7.7681]
[1726678054211,0.2907695,128.76,128.74,9.32068275]
[1726678054807,0.2907695,128.76,128.75,6.019]
[1726678055002,0.2907695,128.76,128.75,13.7859]
[1726678055210,0.2907695,128.76,128.75,47.16876706]
[1726678055419,0.2590506,128.8,128.75,47.16876706]
[1726678055420,0.2590506,128.8,128.78,7.7651]
[1726678055623,0.2590506,128.8,128.79,1.55269003]
[1726678055911,0.2590506,128.8,128.77,7.7656]
[1726678059109,0.2590506,128.8,128.78,7.7648]
[1726678059929,0.2590506,128.8,128.79,1.55272426]
[1726678060432,0.2590506,128.8,128.78,7.7648]
[1726678062439,0.2590506,128.8,128.76,19.4151]
[1726678063236,0.2590506,128.8,128.78,7.7651]
[1726678063410,0.2590506,128.8,128.77,7.7656]
[1726678064908,8.0230506,128.8,128.76,27.1814]
[1726678065109,0.2590506,128.8,128.77,7.7657]
[1726678065611,8.0230506,128.8,128.76,27.1813]
[1726678065929,0.2590506,128.8,128.77,7.7657]
[1726678067203,0.2590506,128.8,128.78,7.7651]
[1726678068424,0.2590506,128.8,128.77,11.1312666]
[1726678068632,0.2590506,128.8,128.77,7.7657]
[1726678069031,8.0231506,128.8,128.76,27.1813]
[1726678069420,0.2590506,128.8,128.77,7.7657]
[1726678069736,0.2590506,128.8,128.78,7.7651]
[1726678069906,0.2590506,128.8,128.77,7.7657]
[1726678072117,0.2590506,128.8,128.78,20.9652946]
[1726678072309,0.2590506,128.8,128.79,7.7645]
[1726678073210,0.2590506,128.8,128.79,18.8957666]
[1726678073412,0.2590506,128.8,128.79,34.6447666]
[1726678073611,0.2590506,128.8,128.79,40.8448666]
[1726678074446,0.2590506,128.8,128.79,41.2213366]
[1726678076035,0.2590506,128.8,128.79,30.09007]
[1726678080320,0.2590506,128.8,128.79,50.09007]
[1726678080520,0.2590506,128.8,128.79,51.64228147]
[1726678080852,0.2590506,128.8,128.79,50.09007]
[1726678081851,0.2590506,128.8,128.79,51.64211268]
[1726678082144,0.2590506,128.8,128.79,50.09007]
[1726678082442,0.2590506,128.84,128.83,27.1675]
[1726678082642,0.2590506,128.84,128.8,38.8184]
[1726678082643,0.2590506,128.84,128.81,7.88829]
[1726678082841,0.2590506,128.84,128.82,7.7627]
[1726678083045,0.2590506,128.84,128.83,9.31405642]
[1726678083225,0.2590506,128.84,128.83,9.43954642]
[1726678084246,0.2590506,128.84,128.83,7.88759]
[1726678084443,0.2590506,128.84,128.83,7.7621]
[1726678085441,0.2590506,128.84,128.83,9.31404934]
[1726678085624,0.2590506,128.84,128.83,7.88759]
[1726678087917,0.2590506,128.84,128.82,27.1692]
[1726678088143,0.2590506,128.84,128.8,20.0]
[1726678088318,0.2590506,128.84,128.79,41.3592]
[1726678088715,0.2590506,128.84,128.8,7.7638]
[1726678088922,24.0359346,128.84,128.79,21.9491]
[1726678089144,8.0207506,128.84,128.79,21.9491]
[1726678089353,0.2590506,128.84,128.8,7.7639]
[1726678090641,0.2590506,128.84,128.83,7.7621]
[1726678091842,0.2590506,128.84,128.82,19.4066]
[1726678092072,0.2590506,128.84,128.8,27.7638]
[1726678092926,0.2590506,128.84,128.8,7.7638]
[1726678093124,0.2590506,128.84,128.79,41.3591]
[1726678093125,24.027864,128.87,128.79,49.1236]
[1726678093430,7.7617,128.84,128.79,49.1236]
[1726678093924,23.776884,128.85,128.8,7.7638]
[1726678094130,7.762,128.84,128.79,27.1744]
[1726678094925,7.762,128.84,128.8,7.7637]
[1726678095140,0.1375703,128.86,128.81,9.3155775]
[1726678095141,7.7612,128.85,128.81,9.3155775]
[1726678095450,7.7612,128.85,128.81,7.7632]
[1726678095646,7.7612,128.85,128.8,7.7637]
[1726678095849,7.7616,128.84,128.8,7.7637]
[1726678097355,7.7616,128.84,128.79,27.1743]
[1726678097538,7.7622,128.83,128.79,27.1743]
[1726678097743,7.7616,128.84,128.79,27.1743]
[1726678097951,7.7616,128.84,128.79,38.30234232]
[1726678098149,7.7616,128.84,128.8,7.7638]
[1726678099235,7.7611,128.85,128.81,1.55238387]
[1726678099441,7.7611,128.85,128.81,9.31528387]
[1726678099643,0.1375703,128.86,128.81,9.31528387]
[1726678099644,7.8981703,128.86,128.82,7.7625]
[1726678099944,7.8981703,128.86,128.83,7.7621]
[1726678099945,0.1375703,128.86,128.83,7.7621]
[1726678100456,0.1375703,128.86,128.81,19.4083]
[1726678101044,7.7609,128.85,128.81,19.4083]
[1726678101351,0.1375703,128.86,128.81,30.53634232]
[1726678101558,0.1375703,128.86,128.83,7.7621]
[1726678101741,0.1375703,128.86,128.84,1.55207319]
[1726678102958,0.1375703,128.86,128.84,12.68011551]
[1726678103141,0.1375703,128.86,128.85,7.7609]
[1726678104361,0.1375703,128.86,128.85,7.88639]
[1726678104859,0.1375703,128.86,128.85,7.7609]
[1726678106157,0.1375703,128.86,128.84,7.7613]
[1726678106341,0.1375703,128.86,128.83,27.1669]
[1726678107233,0.1375703,128.86,128.83,19.4052]
[1726678107646,0.1375703,128.86,128.84,7.7613]
[1726678108154,0.1375703,128.86,128.83,19.4052]
[1726678108343,0.1375703,128.86,128.83,27.1673]
[1726678110964,0.1375703,128.86,128.75,22.2789544]
[1726678110965,1.18179698,128.85,128.75,22.2789544]
[1726678111273,44.027864,128.83,128.76,19.4156]
[1726678111470,7.7638,128.81,128.76,27.1815]
[1726678111948,0.12549,128.82,128.75,30.0457544]
[1726678112154,7.7648,128.79,128.75,30.0457544]
[1726678112357,7.7641,128.8,128.75,30.0457544]
[1726678113063,24.027864,128.8,128.75,0.1537544]
[1726678113361,23.776884,128.78,128.75,0.1537544]
[1726678113560,7.7651,128.79,128.75,7.9206544]
[1726678114261,31.540884,128.8,128.75,7.9206544]
[1726678114467,7.7629,128.82,128.77,7.7657]
[1726678114765,7.7622,128.83,128.78,7.7651]
[1726678115139,16.1414,128.84,128.75,0.1537544]
[1726678115140,16.1414,128.84,128.77,19.4137]
[1726678115448,16.1414,128.84,128.75,20.1537544]
[1726678115864,24.027864,128.83,128.75,20.1537544]
[1726678116363,7.7634,128.81,128.76,7.7662]
[1726678117147,7.7629,128.82,128.77,7.7656]
[1726678117870,31.540684,128.81,128.76,27.1815]
[1726678118162,0.37647,128.82,128.76,27.1815]
[1726678119352,7.7641,128.8,128.76,27.1815]
[1726678119759,7.7641,128.8,128.76,19.4153]
[1726678121069,7.7641,128.8,128.76,27.1816]
[1726678121366,7.7635,128.81,128.76,27.1816]
[1726678121565,27.7623,128.83,128.78,7.7649]
[1726678121768,27.7623,128.83,128.79,7.7644]
[1726678121769,7.7623,128.83,128.79,7.7644]
[1726678122089,7.7617,128.84,128.79,9.3170377]
[1726678122570,7.7623,128.83,128.79,9.3170377]
[1726678123973,7.7623,128.83,128.79,7.7644]
[1726678125567,44.153354,128.85,128.78,19.4124]
[1726678125775,7.7637,128.81,128.77,7.7653]
[1726678126283,0.12549,128.83,128.76,22.3015]
[1726678126458,7.7646,128.79,128.76,22.3015]
[1726678126656,44.153354,128.83,128.76,22.3015]
[1726678126859,44.027864,128.83,128.76,22.3015]
[1726678127075,7.7637,128.81,128.77,7.7657]
[1726678127475,7.7637,128.81,128.78,7.7651]
[1726678127662,7.7639,128.8,128.77,27.1797]
[1726678127860,7.7639,128.8,128.77,19.4142]
[1726678129080,7.7639,128.8,128.76,30.0674]
[1726678129384,7.7647,128.79,128.75,27.3379544]
[1726678129991,7.7652,128.78,128.75,27.3379544]
[1726678130291,7.7657,128.77,128.75,0.1537544]
[1726678131480,31.542184,128.78,128.75,0.1537544]
[1726678133681,7.7663,128.76,128.75,0.1537544]
[1726678136872,31.542784,128.77,128.75,0.1537544]
[1726678138693,7.7663,128.76,128.75,0.1537544]
[1726678139581,31.543184,128.76,128.75,0.1537544]
[1726678144620,27.48727428,128.8,128.75,0.1537544]
[1726678144779,7.7653,128.78,128.75,0.1537544]
[1726678145092,7.7653,128.78,128.75,1.70696465]
[1726678146998,7.7653,128.78,128.75,0.1537544]
[1726678147698,7.7653,128.78,128.75,1.70696395]
[1726678147899,7.7653,128.78,128.75,1.70685385]
[1726678149278,7.7659,128.77,128.75,0.1537544]
[1726678151802,7.7663,128.76,128.75,0.1537544]
[1726678155925,7.7663,128.76,128.73,7.7681]
[1726678155926,7.7663,128.76,128.74,0.2113091]
[1726678156991,24.153354,128.8,128.74,0.2113091]
[1726678157190,7.7669,128.75,128.74,0.2113091]
[1726678157992,31.543784,128.75,128.74,0.2113091]
[1726678160110,23.776884,128.75,128.74,0.2113091]
[1726678160309,7.7666,128.76,128.74,0.2113091]
[1726678160510,7.7666,128.76,128.74,1.76465569]
[1726678161091,7.7666,128.76,128.74,0.2113091]
[1726678164129,7.7669,128.75,128.74,0.2113091]
[1726678164336,31.543784,128.75,128.74,0.2113091]
[1726678165539,51.543784,128.75,128.74,0.2113091]
[1726678168006,7.7669,128.75,128.74,0.2113091]
[1726678168328,20.0,128.75,128.74,0.2113091]
[1726678170050,51.543784,128.75,128.74,0.2113091]
[1726678191525,20.0,128.75,128.74,0.2113091]
[1726678191934,20.0,128.75,128.74,1.76461995]
[1726678192652,20.0,128.75,128.74,0.2113091]
[1726678194245,7.766,128.77,128.74,0.2113091]
[1726678194448,20.0,128.77,128.74,9.53199982]
[1726678194849,7.7653,128.78,128.74,24.60109982]
[1726678195144,7.7647,128.79,128.75,13.7973]
[1726678195355,20.0,128.78,128.76,1.55298062]
[1726678196647,20.0,128.78,128.75,6.0305]
[1726678197355,7.7652,128.78,128.75,6.0305]
[1726678197537,20.0,128.8,128.75,6.0305]
[1726678197743,7.7661,128.77,128.74,15.2804091]
[1726678198255,7.7663,128.76,128.74,15.2804091]
[1726678198552,24.027864,128.79,128.74,0.2113091]
[1726678198553,43.776884,128.78,128.74,0.2113091]
[1726678198755,0.25098,128.77,128.74,0.2113091]
[1726678198957,51.543784,128.75,128.74,0.2113091]
[1726678200930,27.7669,128.75,128.74,0.2113091]
[1726678203963,51.543784,128.75,128.74,0.2113091]
[1726678204164,27.7669,128.75,128.74,0.2113091]
[1726678209177,8.11680358,128.8,128.74,0.2113091]
[1726678209466,7.7649,128.79,128.75,7.7669]
[1726678209670,7.7649,128.79,128.76,1.55307331]
[1726678209970,7.7649,128.79,128.75,7.7669]
[1726678211261,7.7652,128.78,128.74,27.3976091]
[1726678212678,20.0,128.78,128.75,7.7669]
[1726678214162,20.0,128.78,128.76,1.55299877]